fUSD/lending_fUSD_20250105
["ID","MTS","AMOUNT","RATE_DAILY","PERIOD"]
[347670854,1736047845958,-500.0,9.589e-05,2]
[347670856,1736047845967,-559.37398066,9.589e-05,2]
[347670858,1736047845977,-500.0,9.589e-05,2]
[347670860,1736047845986,-296.00350395,9.589e-05,2]
[347670862,1736047845996,-500.0,9.589e-05,2]
[347670864,1736047846006,-368.37217797,9.589e-05,2]
[347670866,1736047846015,-500.0,9.589e-05,2]
[347670868,1736047846025,-500.0,9.589e-05,2]
[347670870,1736047846034,-500.0,9.589e-05,2]
[347670872,1736047846044,-500.0,9.589e-05,2]
[347670874,1736047846054,-500.0,9.589e-05,2]
[347670876,1736047846063,-500.0,9.589e-05,2]
[347670894,1736047846223,-500.0,9.589e-05,2]
[347670896,1736047846233,-500.0,9.589e-05,2]
[347670898,1736047846242,-500.0,9.589e-05,2]
[347670900,1736047846252,-500.0,9.589e-05,2]
[347670902,1736047846261,-500.0,9.589e-05,2]
[347670904,1736047846270,-500.0,9.589e-05,2]
[347670907,1736047846279,-500.0,9.589e-05,2]
[347670909,1736047846289,-500.0,9.589e-05,2]
[347670911,1736047846299,-500.0,9.589e-05,2]
[347670913,1736047846308,-500.0,9.589e-05,2]
[347670915,1736047846317,-407.07508962,9.589e-05,2]
[347670917,1736047846326,-500.0,9.589e-05,2]
[347670919,1736047846335,-240.64771128,9.589e-05,2]
[347670921,1736047846344,-500.0,9.589e-05,2]
[347670923,1736047846354,-502.66435273,9.589e-05,2]
[347670925,1736047846363,-500.0,9.589e-05,2]
[347670927,1736047846372,-423.11171063,9.589e-05,2]
[347670929,1736047846382,-415.3423685,9.589e-05,2]
[347670931,1736047846391,-500.0,9.589e-05,2]
[347670933,1736047846400,-556.94627491,9.589e-05,2]
[347670935,1736047846409,-500.0,9.589e-05,2]
[347670937,1736047846418,-416.15961928,9.589e-05,2]
[347670939,1736047846427,-500.0,9.589e-05,2]
[347670941,1736047846436,-394.81062208,9.589e-05,2]
[347670943,1736047846445,-500.0,9.589e-05,2]
[347670945,1736047846454,-500.0,9.589e-05,2]
[347670947,1736047846463,-500.0,9.589e-05,2]
[347670949,1736047846472,-500.0,9.589e-05,2]
[347670951,1736047846482,-500.0,9.862e-05,2]
[347670953,1736047846490,-500.0,9.862e-05,2]
[347670955,1736047846499,-204.27651094,9.863e-05,2]
[347670957,1736047846508,-500.0,9.863e-05,2]
[347670959,1736047846518,-500.0,9.863e-05,2]
[347670960,1736047846531,-500.0,9.863e-05,2]
[347670962,1736047846540,-309.45,9.863e-05,2]
[347670964,1736047846549,-500.0,9.863e-05,2]
[347670966,1736047846559,-500.0,9.863e-05,2]
[347670968,1736047846570,-312.73142376,9.863e-05,2]
[347670970,1736047846579,-500.0,9.863e-05,2]
[347670972,1736047846588,-500.0,9.863e-05,2]
[347670974,1736047846597,-500.0,9.863e-05,2]
[347670975,1736047846606,-500.0,9.863e-05,2]
[347670976,1736047846615,-500.0,9.863e-05,2]
[347670977,1736047846625,-500.0,9.863e-05,2]
[347670978,1736047846635,-500.0,9.863e-05,2]
[347670979,1736047846644,-500.0,9.863e-05,2]
[347670980,1736047846653,-340.18683886,9.863e-05,2]
[347670981,1736047846662,-481.34383931,9.863e-05,2]
[347670982,1736047846671,-500.0,9.863e-05,2]
[347670983,1736047846680,-500.0,9.863e-05,2]
[347670984,1736047846689,-500.0,9.863e-05,2]
[347670985,1736047846698,-500.0,9.863e-05,2]
[347670986,1736047846707,-208.42239493,9.863e-05,2]
[347670987,1736047846716,-571.15205207,9.863e-05,2]
[347670988,1736047846725,-346.86138983,9.863e-05,2]
[347670990,1736047846734,-500.0,9.863e-05,2]
[347670992,1736047846744,-500.0,9.863e-05,2]
[347670994,1736047846753,-500.0,9.863e-05,2]
[347670996,1736047846763,-500.0,9.863e-05,2]
[347670998,1736047846772,-500.0,9.863e-05,2]
[347671000,1736047846781,-282.38190113,9.863e-05,2]
[347671002,1736047846791,-500.0,9.863e-05,2]
[347671004,1736047846800,-500.0,9.863e-05,2]
[347671006,1736047846809,-467.25965513,9.863e-05,2]
[347671008,1736047846821,-500.0,0.00010135,2]
[347671010,1736047846830,-500.0,0.00010135,2]
[347671012,1736047846839,-381.37323166,0.00010135,2]
[347671014,1736047846848,-500.0,0.00010135,2]
[347671016,1736047846858,-500.0,0.00010135,2]
[347671018,1736047846867,-636.35540938,0.00010135,2]
[347671020,1736047846876,-500.0,0.00010135,2]
[347671022,1736047846886,-500.72878641,0.00010135,2]
[347671024,1736047846895,-500.0,0.00010135,2]
[347671026,1736047846905,-559.12979751,0.00010135,2]
[347671028,1736047846914,-500.0,0.00010135,2]
[347671030,1736047846923,-500.0,0.00010135,2]
[347671032,1736047846932,-500.0,0.00010135,2]
[347671034,1736047846941,-399.03178294,0.00010135,2]
[347671036,1736047846951,-500.0,0.00010135,2]
[347671038,1736047846960,-500.0,0.00010135,2]
[347671039,1736047846969,-500.0,0.00010136,2]
[347671041,1736047846978,-500.0,0.00010136,2]
[347671043,1736047846988,-351.22,0.00010136,2]
[347671045,1736047846999,-500.0,0.00010136,2]
[347671047,1736047847008,-500.0,0.00010136,2]
[347671049,1736047847017,-500.0,0.00010136,2]
[347671051,1736047847027,-500.0,0.00010136,2]
[347671053,1736047847036,-500.0,0.00010136,2]
[347671055,1736047847045,-500.0,0.00010136,2]
[347671057,1736047847054,-404.78732007,0.00010136,2]
[347671059,1736047847065,-154.99692762,0.00010136,2]
[347671061,1736047847076,-500.0,0.00010136,2]
[347671064,1736047847085,-500.0,0.00010136,2]
[347671066,1736047847094,-500.0,0.00010136,2]
[347671067,1736047847104,-598.68,0.00010136,2]
[347671069,1736047847113,-500.0,0.00010136,2]
[347671071,1736047847122,-500.0,0.00010136,2]
[347671073,1736047847132,-295.90904618,0.00010136,2]
[347671075,1736047847141,-187.17664664,0.00010136,2]
[347671077,1736047847150,-344.61109672,0.00010136,2]
[347671079,1736047847159,-500.0,0.00010136,2]
[347671081,1736047847168,-500.0,0.00010136,2]
[347671083,1736047847177,-500.0,0.00010136,2]
[347671085,1736047847186,-500.0,0.00010136,2]
[347671087,1736047847196,-250.0,0.00010364,2]
[347671089,1736047847205,-500.0,0.00010409,2]
[347671091,1736047847214,-500.0,0.00010409,2]
[347671093,1736047847224,-500.0,0.00010409,2]
[347671095,1736047847233,-500.0,0.00010409,2]
[347671097,1736047847242,-604.50225673,0.00010409,2]
[347671099,1736047847252,-500.0,0.00010409,2]
[347671101,1736047847262,-500.0,0.00010409,2]
[347671103,1736047847272,-500.0,0.00010409,2]
[347671105,1736047847281,-500.0,0.0001041,2]
[347671107,1736047847290,-500.0,0.0001041,2]
[347671109,1736047847300,-500.0,0.0001041,2]
[347671111,1736047847309,-500.0,0.0001041,2]
[347671113,1736047847319,-500.0,0.0001041,2]
[347671115,1736047847328,-299.10381926,0.0001041,2]
[347671117,1736047847338,-500.0,0.0001041,2]
[347671119,1736047847347,-500.0,0.0001041,2]
[347671121,1736047847356,-500.0,0.0001041,2]
[347671123,1736047847366,-207.16284436,0.0001041,2]
[347671125,1736047847375,-500.0,0.0001041,2]
[347671127,1736047847384,-500.0,0.0001041,2]
[347671129,1736047847393,-500.0,0.0001041,2]
[347671131,1736047847402,-500.0,0.0001041,2]
[347671133,1736047847411,-500.0,0.0001041,2]
[347671135,1736047847420,-628.66474232,0.0001041,2]
[347671137,1736047847430,-500.0,0.0001041,2]
[347671139,1736047847439,-666.0,0.00010411,2]
[347671141,1736047847448,-19852.93721113,0.00010562,4]
[347671143,1736047847458,-526.59876923,0.00010683,2]
[347671145,1736047847467,-354.65908061,0.00010683,2]
[347671147,1736047847476,-500.0,0.00010683,2]
[347671149,1736047847485,-500.0,0.00010683,2]
[347671151,1736047847494,-500.0,0.00010683,2]
[347671153,1736047847503,-324.25825472,0.00010683,2]
[347671155,1736047847514,-500.0,0.00010683,2]
[347671157,1736047847523,-490.4071644,0.00010684,2]
[347671159,1736047847537,-505.08429426,0.00010684,2]
[347671162,1736047847546,-500.0,0.00010684,2]
[347671163,1736047847555,-456.97055402,0.00010684,2]
[347671165,1736047847564,-500.0,0.00010684,2]
[347671167,1736047847574,-500.0,0.00010684,2]
[347671169,1736047847584,-500.0,0.00010684,2]
[347671171,1736047847593,-500.0,0.00010684,2]
[347671173,1736047847604,-500.0,0.00010684,2]
[347671175,1736047847614,-500.0,0.00010684,2]
[347671177,1736047847623,-500.0,0.00010684,2]
[347671179,1736047847632,-500.0,0.00010684,2]
[347671181,1736047847642,-388.17,0.00010684,2]
[347671183,1736047847651,-378.43853847,0.00010684,2]
[347671185,1736047847660,-1212.05,0.00010727,2]
[347671187,1736047847670,-500.0,0.00010957,2]
[347671189,1736047847679,-500.0,0.00010957,2]
[347671191,1736047847688,-500.0,0.00010957,2]
[347671193,1736047847697,-500.0,0.00010957,2]
[347671195,1736047847706,-500.0,0.00010958,2]
[347671197,1736047847715,-500.0,0.00010958,2]
[347671199,1736047847724,-500.0,0.00010958,2]
[347671201,1736047847734,-500.0,0.00010958,2]
[347671203,1736047847744,-500.0,0.00010958,2]
[347671205,1736047847753,-500.0,0.00010958,2]
[347671207,1736047847762,-234.8423708,0.00010958,2]
[347671209,1736047847771,-500.0,0.00010958,2]
[347671211,1736047847780,-249.29465102,0.00010958,2]
[347671213,1736047847790,-550.0,0.00011,2]
[347671215,1736047847798,-3909.235,0.00011153,2]
[347671217,1736047847808,-636.0,0.00011153,2]
[347671219,1736047847819,-150.73,0.00011153,2]
[347671221,1736047847828,-4085.324,0.00011153,2]
[347671223,1736047847837,-1106.196,0.00011153,2]
[347671225,1736047847846,-461.63,0.00011175,2]
[347671227,1736047847856,-275.87,0.00011189,2]
[347671229,1736047847865,-1000.0,0.00011199,2]
[347671231,1736047847874,-380.98166519,0.00011231,2]
[347671233,1736047847883,-500.0,0.00011231,2]
[347671235,1736047847892,-500.0,0.00011231,2]
[347671237,1736047847902,-500.0,0.00011231,2]
[347671239,1736047847911,-500.0,0.00011232,2]
[347671241,1736047847920,-500.0,0.00011232,2]
[347671243,1736047847929,-500.0,0.00011232,2]
[347671245,1736047847938,-391.81278213,0.00011232,2]
[347671247,1736047847949,-624.73240947,0.00011232,2]
[347671249,1736047847958,-500.0,0.00011232,2]
[347671251,1736047847967,-500.0,0.00011232,2]
[347671253,1736047847977,-318.412,0.0001145,2]
[347671255,1736047847986,-500.0,0.00011505,2]
[347671257,1736047847995,-917.43,0.00011505,2]
[347671259,1736047848005,-1568.67,0.00011505,2]
[347671261,1736047848014,-654.01,0.00011505,2]
[347671263,1736047848024,-500.0,0.00011505,2]
[347671265,1736047848033,-500.0,0.00011505,2]
[347671267,1736047848042,-922.8,0.00011505,2]
[347671269,1736047848051,-500.0,0.00011505,2]
[347671271,1736047848061,-500.0,0.00011505,2]
[347671273,1736047848071,-657.17,0.00011505,2]
[347671275,1736047848080,-500.0,0.00011505,2]
[347671277,1736047848089,-500.0,0.00011505,2]
[347671279,1736047848099,-500.0,0.00011505,2]
[347671281,1736047848108,-500.0,0.00011505,2]
[347671283,1736047848117,-500.0,0.00011505,2]
[347671285,1736047848127,-500.0,0.00011506,2]
[347671287,1736047848136,-500.0,0.00011506,2]
[347671289,1736047848145,-278.11148105,0.00011506,2]
[347671291,1736047848155,-500.0,0.00011506,2]
[347671293,1736047848164,-500.0,0.00011506,2]
[347671295,1736047848173,-303.69,0.00011687,2]
[347671297,1736047848182,-500.0,0.00011779,2]
[347671299,1736047848191,-917.43,0.00011779,2]
[347671301,1736047848200,-1568.67,0.00011779,2]
[347671303,1736047848209,-654.01,0.00011779,2]
[347671305,1736047848218,-500.0,0.00011779,2]
[347671307,1736047848227,-500.0,0.00011779,2]
[347671309,1736047848236,-922.8,0.00011779,2]
[347671311,1736047848245,-500.0,0.00011779,2]
[347671313,1736047848255,-596.77,0.00011779,2]
[347671315,1736047848263,-657.17,0.00011779,2]
[347671317,1736047848273,-500.0,0.00011779,2]
[347671319,1736047848283,-500.0,0.00011779,2]
[347671321,1736047848292,-500.0,0.00011779,2]
[347671323,1736047848301,-500.0,0.00011779,2]
[347671325,1736047848311,-500.0,0.00011779,2]
[347671327,1736047848320,-444.06,0.0001178,2]
[347671329,1736047848329,-594.02331452,0.0001178,2]
[347671331,1736047848338,-442.22489084,0.0001178,2]
[347671333,1736047848347,-370.90073564,0.0001178,2]
[347671335,1736047848356,-200.0,0.000118,2]
[347671337,1736047848365,-3000.0,0.0001193,2]
[347671339,1736047848374,-5000.0,0.00011947,2]
[347671341,1736047848383,-1000.0,0.00011948,2]
[347671343,1736047848395,-4981.256,0.00011948,2]
[347671345,1736047848405,-891.44,0.00011949,2]
[347671347,1736047848414,-2138.6612,0.00011949,2]
[347671349,1736047848423,-5630.5159,0.0001195,2]
[347671351,1736047848433,-14898.2241,0.0001195,2]
[347671353,1736047848442,-2400.15,0.00012,2]
[347671355,1736047848451,-277877.07800899,0.00012,2]
[347671359,1736047848474,-831.17006041,0.00012,2]
[347671361,1736047848485,-417.75111874,0.00012,2]
[347671363,1736047848496,-4836.0,0.00012,2]
[347671365,1736047848507,-1192.20706,0.00012,2]
[347671367,1736047848517,-49260.0,0.00012,2]
[347671369,1736047848528,-365.7149734,0.00012,2]
[347671411,1736047848915,-407.82269628,0.00010135,2]
[347671414,1736047848938,-92.17730372,0.00010135,2]
[347671416,1736047848947,-63760.39865612,0.00012,2]
[347671457,1736047849322,-267.71968205,0.00012,2]
[347671460,1736047849334,-59156.774,0.00012,2]
[347671462,1736047849347,-1076.24944658,0.00012,2]
[347671466,1736047849374,-500.0,0.00010409,2]
[347671468,1736047849383,-95021.93699371,0.00012,2]
[347671470,1736047849393,-5003.20150157,0.0001204,2]
[347671472,1736047849402,-569.44,0.00012046,2]
[347671474,1736047849411,-500.0,0.00012046,2]
[347671476,1736047849420,-500.0,0.00012046,2]
[347671478,1736047849430,-528.4,0.00012046,2]
[347671480,1736047849439,-500.0,0.00012046,2]
[347671482,1736047849449,-500.0,0.00012046,2]
[347671484,1736047849458,-742.98,0.00012046,2]
[347671486,1736047849468,-526.62,0.00012046,2]
[347671488,1736047849478,-500.0,0.00012046,2]
[347671490,1736047849488,-1519.06,0.00012046,2]
[347671492,1736047849497,-763.34,0.00012046,2]
[347671494,1736047849506,-1366.38,0.00012046,2]
[347671496,1736047849515,-2379.54,0.00012046,2]
[347671498,1736047849527,-154.614699,0.00012046,2]
[347671500,1736047849536,-500.0,0.00012046,2]
[347671502,1736047849546,-156.641603,0.00012046,2]
[347671504,1736047849555,-500.0,0.00012046,2]
[347671506,1736047849564,-156.833203,0.00012046,2]
[347671508,1736047849575,-500.0,0.00012046,2]
[347671510,1736047849584,-500.0,0.00012046,2]
[347671512,1736047849594,-500.0,0.00012046,2]
[347671514,1736047849603,-195.879261,0.00012046,2]
[347671516,1736047849613,-500.0,0.00012046,2]
[347671518,1736047849622,-500.0,0.00012046,2]
[347671520,1736047849632,-850.82,0.00012046,2]
[347671522,1736047849641,-500.0,0.00012046,2]
[347671524,1736047849651,-500.0,0.00012046,2]
[347671526,1736047849660,-1396.53,0.00012046,2]
[347671528,1736047849669,-500.0,0.00012046,2]
[347671530,1736047849679,-931.57,0.00012046,2]
[347671532,1736047849688,-500.0,0.00012046,2]
[347671534,1736047849697,-500.0,0.00012046,2]
[347671536,1736047849707,-500.0,0.00012046,2]
[347671538,1736047849716,-508.31,0.00012046,2]
[347671540,1736047849725,-500.0,0.00012046,2]
[347671541,1736047849734,-500.0,0.00012047,2]
[347671542,1736047849744,-540.51907017,0.00012047,2]
[347671543,1736047849753,-500.0,0.00012047,2]
[347671544,1736047849762,-524.91243451,0.00012047,2]
[347671545,1736047849771,-512.94461922,0.00012047,2]
[347671546,1736047849781,-500.0,0.00012047,2]
[347671547,1736047849790,-500.0,0.00012047,2]
[347671548,1736047849800,-500.0,0.00012047,2]
[347671549,1736047849809,-500.0,0.00012047,2]
[347671550,1736047849818,-569.08056936,0.00012047,2]
[347671551,1736047849828,-500.0,0.00012047,2]
[347671552,1736047849837,-505.26,0.00012047,2]
[347671553,1736047849847,-500.0,0.00012047,2]
[347671555,1736047849856,-376.45495344,0.00012047,2]
[347671557,1736047849866,-500.0,0.00012047,2]
[347671559,1736047849875,-500.0,0.00012047,2]
[347671561,1736047849885,-500.0,0.00012047,2]
[347671563,1736047849894,-500.0,0.00012047,2]
[347671565,1736047849903,-500.0,0.00012047,2]
[347671567,1736047849914,-500.0,0.00012047,2]
[347671569,1736047849923,-500.0,0.00012047,2]
[347671571,1736047849933,-365.80999798,0.00012047,2]
[347671573,1736047849942,-500.0,0.00012047,2]
[347671575,1736047849952,-2083.74,0.00012047,2]
[347671577,1736047849961,-500.0,0.00012047,2]
[347671579,1736047849970,-500.0,0.00012047,2]
[347671581,1736047849979,-500.0,0.00012047,2]
[347671583,1736047849991,-500.0,0.00012047,2]
[347671585,1736047850000,-500.0,0.00012047,2]
[347671587,1736047850009,-500.0,0.00012047,2]
[347671589,1736047850018,-500.0,0.00012047,2]
[347671591,1736047850027,-500.0,0.00012047,2]
[347671593,1736047850037,-500.0,0.00012047,2]
[347671595,1736047850046,-500.0,0.00012047,2]
[347671597,1736047850056,-524.62267878,0.00012047,2]
[347671599,1736047850066,-500.0,0.00012047,2]
[347671601,1736047850075,-500.0,0.00012047,2]
[347671603,1736047850084,-500.0,0.00012047,2]
[347671605,1736047850094,-500.0,0.00012047,2]
[347671607,1736047850103,-500.0,0.00012047,2]
[347671609,1736047850112,-500.0,0.00012047,2]
[347671611,1736047850122,-2858.96,0.00012047,2]
[347671613,1736047850131,-1319.99,0.00012047,2]
[347671615,1736047850140,-500.0,0.00012047,2]
[347671617,1736047850150,-500.0,0.00012047,2]
[347671619,1736047850159,-1000.0,0.00012047,2]
[347671621,1736047850169,-1000.0,0.00012047,2]
[347671623,1736047850178,-1000.0,0.00012047,2]
[347671625,1736047850187,-1000.0,0.00012047,2]
[347671627,1736047850196,-1000.0,0.00012047,2]
[347671629,1736047850205,-1000.0,0.00012047,2]
[347671631,1736047850215,-1000.0,0.00012047,2]
[347671633,1736047850224,-1000.0,0.00012047,2]
[347671635,1736047850233,-1000.0,0.00012047,2]
[347671637,1736047850242,-1000.0,0.00012047,2]
[347671639,1736047850251,-1000.0,0.00012047,2]
[347671641,1736047850260,-1000.0,0.00012047,2]
[347671643,1736047850269,-1000.0,0.00012047,2]
[347671645,1736047850278,-1000.0,0.00012047,2]
[347671647,1736047850287,-1000.0,0.00012047,2]
[347671649,1736047850297,-1000.0,0.00012047,2]
[347671651,1736047850306,-1000.0,0.00012047,2]
[347671653,1736047850315,-1000.0,0.00012047,2]
[347671655,1736047850324,-1000.0,0.00012047,2]
[347671657,1736047850334,-1000.0,0.00012047,2]
[347671658,1736047850343,-1000.0,0.00012047,2]
[347671660,1736047850352,-1000.0,0.00012047,2]
[347671662,1736047850361,-1000.0,0.00012047,2]
[347671664,1736047850369,-1000.0,0.00012047,2]
[347671666,1736047850379,-1000.0,0.00012047,2]
[347671668,1736047850388,-1000.0,0.00012047,2]
[347671670,1736047850397,-1000.0,0.00012047,2]
[347671672,1736047850407,-1000.0,0.00012047,2]
[347671674,1736047850415,-1000.0,0.00012047,2]
[347671676,1736047850424,-1000.0,0.00012047,2]
[347671678,1736047850433,-1000.0,0.00012047,2]
[347671680,1736047850442,-1000.0,0.00012047,2]
[347671682,1736047850451,-1000.0,0.00012047,2]
[347671684,1736047850460,-1000.0,0.00012047,2]
[347671686,1736047850469,-1000.0,0.00012047,2]
[347671688,1736047850478,-1000.0,0.00012047,2]
[347671690,1736047850487,-1000.0,0.00012047,2]
[347671692,1736047850496,-1000.0,0.00012047,2]
[347671694,1736047850505,-1000.0,0.00012047,2]
[347671696,1736047850514,-1000.0,0.00012047,2]
[347671698,1736047850523,-1000.0,0.00012047,2]
[347671700,1736047850532,-1000.0,0.00012047,2]
[347671702,1736047850543,-1000.0,0.00012047,2]
[347671704,1736047850552,-1000.0,0.00012047,2]
[347671706,1736047850561,-1000.0,0.00012047,2]
[347671708,1736047850570,-1000.0,0.00012047,2]
[347671710,1736047850579,-1000.0,0.00012047,2]
[347671712,1736047850590,-1000.0,0.00012047,2]
[347671714,1736047850599,-1000.0,0.00012047,2]
[347671716,1736047850608,-1000.0,0.00012047,2]
[347671718,1736047850619,-1000.0,0.00012047,2]
[347671720,1736047850628,-1004.0,0.00012047,2]
[347671722,1736047850638,-498.51,0.00012047,2]
[347671724,1736047850647,-504.23,0.00012047,2]
[347671726,1736047850656,-399.10880704,0.00012048,2]
[347671728,1736047850665,-500.0,0.00012048,2]
[347671730,1736047850674,-629.66104667,0.00012048,2]
[347671732,1736047850683,-500.0,0.00012048,2]
[347671734,1736047850692,-500.0,0.00012048,2]
[347671736,1736047850702,-500.0,0.00012048,2]
[347671738,1736047850712,-501.0506046,0.00012048,2]
[347671740,1736047850721,-501.10975135,0.00012048,2]
[347671742,1736047850730,-500.80819577,0.00012048,2]
[347671744,1736047850739,-500.85615906,0.00012048,2]
[347671746,1736047850748,-500.66378441,0.00012048,2]
[347671748,1736047850757,-500.92226074,0.00012048,2]
[347671750,1736047850766,-500.84117707,0.00012048,2]
[347671752,1736047850776,-500.0,0.00012048,2]
[347671754,1736047850785,-500.7076447,0.00012048,2]
[347671756,1736047850794,-500.0,0.00012048,2]
[347671758,1736047850803,-500.47614636,0.00012048,2]
[347671760,1736047850812,-500.0,0.00012048,2]
[347671762,1736047850822,-500.30843048,0.00012048,2]
[347671763,1736047850832,-500.0,0.00012048,2]
[347671766,1736047850842,-500.0,0.00012048,2]
[347671767,1736047850851,-500.37338459,0.00012048,2]
[347671769,1736047850860,-500.0,0.00012048,2]
[347671771,1736047850869,-500.72091094,0.00012048,2]
[347671773,1736047850878,-500.18040919,0.00012048,2]
[347671775,1736047850887,-500.0,0.00012048,2]
[347671777,1736047850897,-500.0,0.00012048,2]
[347671779,1736047850906,-500.0,0.00012048,2]
[347671781,1736047850915,-500.0,0.00012048,2]
[347671783,1736047850927,-500.88067714,0.00012048,2]
[347671785,1736047850937,-500.0,0.00012048,2]
[347671787,1736047850946,-500.0,0.00012048,2]
[347671789,1736047850955,-500.0,0.00012048,2]
[347671791,1736047850965,-500.0,0.00012048,2]
[347671793,1736047850974,-500.0,0.00012048,2]
[347671795,1736047850983,-500.0,0.00012048,2]
[347671797,1736047850992,-500.0,0.00012048,2]
[347671799,1736047851001,-500.0,0.00012048,2]
[347671801,1736047851010,-500.0,0.00012048,2]
[347671803,1736047851019,-500.0,0.00012048,2]
[347671805,1736047851028,-500.0,0.00012048,2]
[347671807,1736047851038,-500.0,0.00012048,2]
[347671809,1736047851047,-500.0,0.00012048,2]
[347671811,1736047851056,-500.0,0.00012048,2]
[347671814,1736047851065,-500.0,0.00012048,2]
[347671816,1736047851074,-500.0,0.00012048,2]
[347671818,1736047851083,-500.0,0.00012048,2]
[347671820,1736047851092,-500.0,0.00012048,2]
[347671822,1736047851101,-500.0,0.00012048,2]
[347671824,1736047851110,-500.0,0.00012048,2]
[347671826,1736047851119,-500.0,0.00012048,2]
[347671827,1736047851127,-500.0,0.00012048,2]
[347671829,1736047851136,-500.0,0.00012048,2]
[347671831,1736047851145,-500.0,0.00012048,2]
[347671833,1736047851154,-500.0,0.00012048,2]
[347671835,1736047851163,-500.0,0.00012048,2]
[347671837,1736047851171,-500.0,0.00012048,2]
[347671839,1736047851180,-500.0,0.00012048,2]
[347671841,1736047851189,-500.0,0.00012048,2]
[347671843,1736047851198,-500.0,0.00012048,2]
[347671845,1736047851207,-500.0,0.00012048,2]
[347671847,1736047851215,-500.0,0.00012048,2]
[347671849,1736047851224,-500.0,0.00012048,2]
[347671851,1736047851233,-500.0,0.00012048,2]
[347671853,1736047851242,-500.0,0.00012048,2]
[347671855,1736047851251,-500.0,0.00012048,2]
[347671857,1736047851260,-500.0,0.00012048,2]
[347671859,1736047851269,-500.0,0.00012048,2]
[347671861,1736047851278,-500.0,0.00012048,2]
[347671863,1736047851287,-500.0,0.00012048,2]
[347671865,1736047851296,-500.0,0.00012048,2]
[347671867,1736047851305,-500.0,0.00012048,2]
[347671869,1736047851314,-500.0,0.00012048,2]
[347671871,1736047851323,-500.0,0.00012048,2]
[347671873,1736047851332,-500.0,0.00012048,2]
[347671875,1736047851341,-500.0,0.00012048,2]
[347671877,1736047851351,-500.0,0.00012048,2]
[347671879,1736047851359,-500.0,0.00012048,2]
[347671881,1736047851368,-500.0,0.00012048,2]
[347671883,1736047851377,-500.0,0.00012048,2]
[347671885,1736047851386,-501.96874098,0.00012048,2]
[347671887,1736047851397,-500.46809695,0.00012048,2]
[347671889,1736047851406,-501.12935268,0.00012048,2]
[347671891,1736047851415,-500.0,0.00012048,2]
[347671893,1736047851424,-500.0,0.00012048,2]
[347671895,1736047851433,-500.0,0.00012048,2]
[347671897,1736047851442,-326.65144547,0.00012048,2]
[347671899,1736047851451,-500.0,0.00012048,2]
[347671901,1736047851460,-500.0,0.00012048,2]
[347671903,1736047851469,-500.0,0.00012048,2]
[347671905,1736047851479,-500.0,0.00012048,2]
[347671907,1736047851488,-500.0,0.00012048,2]
[347671909,1736047851498,-500.0,0.00012048,2]
[347671911,1736047851507,-500.0,0.00012048,2]
[347671913,1736047851516,-500.0,0.00012048,2]
[347671915,1736047851525,-500.0,0.00012048,2]
[347671917,1736047851534,-500.39277294,0.00012048,2]
[347671919,1736047851543,-500.0,0.00012048,2]
[347671921,1736047851552,-500.0,0.00012048,2]
[347671923,1736047851561,-500.0,0.00012048,2]